Cogmind - Beta 10.2 @@@ ROGUE MODE // 2020.12.31 @ 03:42:23 Player: sentrybuster Result: Destroyed by D-53 Grenadier with Mini Grenade Launcher Performance ------------- Evolutions (0) 0 Regions Visited (2) 400 Robots Destroyed (0) 0 Value Destroyed (10) 10 Prototype IDs (0) 0 Alien Tech Used (0) 0 Bonus (0) 0 TOTAL SCORE: 410 Bonus ------- None Cogmind --------- Core Integrity 0/250 Matter 100/300 Energy 250/250 System Corruption 0% Temperature Cool (0) Movement Rolling (100) Location -10/Mines Parts ------- > --- POWER (1) -------- Ion Engine > --- PROPULSION (2) --- Compact Wheel Compact Wheel > --- UTILITY (2) ------ Heat Sink Small Storage Unit > --- WEAPON (2) ------- EM Pulse Gun > --- INVENTORY (6) ---- Light Ion Engine Aluminum Leg Aluminum Leg High-capacity Matter Pod (0) EM Pulse Gun Light Assault Rifle Peak State ------------ > --- POWER ------------ Ion Engine > --- PROPULSION ------- Compact Wheel Compact Wheel > --- UTILITY ---------- Heat Sink Small Storage Unit > --- WEAPON ----------- EM Pulse Gun Rocket Launcher > --- INVENTORY -------- Light Ion Engine Aluminum Leg Aluminum Leg High-capacity Matter Pod EM Pulse Gun Light Assault Rifle [Rating: 8] Favorites ----------- Power Ion Engine Engine Ion Engine Propulsion Compact Wheel Wheel Compact Wheel Utility Small Storage Unit Device Heat Sink Storage Small Storage Unit Weapon EM Pulse Gun Energy Gun EM Pulse Gun Ballistic Gun Light Assault Rifle Launcher Rocket Launcher Build | -11 -10 -10 ------- Run | Scr Mat Min Slots Evolved . | . . . Power . | . . . Propulsion . | . . . Utility . | . . . Weapon . | . . . Parts Attached 10 | 6 3 1 Power 1 | 1 . . Engine 1 | 1 . . Core . | . . . Reactor . | . . . Propulsion 2 | 2 . . Treads . | . . . Leg . | . . . Wheel 2 | 2 . . Hover . | . . . Flight . | . . . Utility 2 | 1 1 . Device 1 | . 1 . Storage 1 | 1 . . Processor . | . . . Hackware . | . . . Protection . | . . . Artifact . | . . . Weapon 5 | 2 2 1 Energy Gun 2 | . 2 . Energy Cannon . | . . . Ballistic Gun 2 | 2 . . Ballistic Cannon . | . . . Launcher 1 | . . 1 Special Weapon . | . . . Impact Weapon . | . . . Slashing Weapon . | . . . Piercing Weapon . | . . . Special Melee Weapon . | . . . Unidentified Prototypes . | . . . Parts Lost 1 | . . 1 Power . | . . . Propulsion . | . . . Utility . | . . . Weapon 1 | . . 1 Highest Loss Streak 1 | . . 1 Average Slot Usage (%) 97 | . 97 98 Engine 14 | . 14 14 Wheel 28 | . 28 28 Device 13 | . 12 14 Storage 14 | . 14 14 Energy Gun 23 | . 23 23 Ballistic Gun 1 | . 2 . Launcher 1 | . . 2 Naked Turns . | . . . Heaviest Build 16 | 11 14 16 Greatest Support 32 | 32 32 32 Greatest Overweight (x) . | . . . Average Overweight (x) . | . . . Largest Inventory Capacity 6 | 6 6 6 Average Capacity 5 | 5 6 6 Most Carried 6 | 4 5 6 Average Carried 4 | 2 4 5 Final Capacity 6 | 6 6 6 Final Carried 6 | 4 5 6 Class Distribution -------------------- 100% | Mutant Dominant Class ---------------- Mutant | -10/Materials Mutant | -10/Mines Resources | -11 -10 -10 ----------- Run | Scr Mat Min Matter Collected 205 | 204 . 1 Remotely . | . . . Salvage Created 40 | . . 40 Parts . | . . . Haulers Intercepted . | . . . Recyclers Shooed . | . . . Parts Field Recycled . | . . . Retrieved Matter . | . . . Parts Self-Destructed . | . . . Prevented . | . . . Kills | -11 -10 -10 ------- Run | Scr Mat Min Combat Hostiles Destroyed 15 | . . 15 Guns 1 | . . 1 AOE 14 | . . 14 Classes Destroyed 1 | . . 1 Assembled 15 | . . 15 Best Kill Streak 15 | . . 15 Combat Bots Only 15 | . . 15 Max Kills in Single Turn 5 | . . 5 Gunslinging . | . . . Exploded 5 | . . 5 Melee . | . . . Uniques/NPCs Destroyed . | . . . Combat | -11 -10 -10 -------- Run | Scr Mat Min Damage Taken 571 | . . 571 Core 285 | . . 285 Absorbed by Shields . | . . . Core Remaining (%) 100 | 100 . . Volleys Fired 12 | . . 12 Largest 2 | . . 2 Hottest 73 | . . 73 Shots Fired 22 | . . 22 Gun 12 | . . 12 Cannon . | . . . Launcher 10 | . . 10 Special . | . . . Kinetic . | . . . Thermal . | . . . Explosive 10 | . . 10 Electromagnetic 12 | . . 12 Robot Hit Streak 2 | . . 2 Robot Miss Streak 4 | . . 4 Penetration Max . | . . . Secondary Targets . | . . . Shots Hit Robots 8 | . . 8 Core Hits 33 | . . 33 Critical Hits . | . . . Critical Kills . | . . . Critical Parts Destroyed . | . . . Melee Attacks . | . . . Impact . | . . . Slashing . | . . . Piercing . | . . . Sneak Attacks . | . . . Combat Hostiles . | . . . Follow-up Attacks . | . . . Damage Inflicted 1164 | . . 1164 Guns 57 | . . 57 Cannons . | . . . Explosions 1107 | . . 1107 Melee . | . . . Ramming . | . . . Kinetic . | . . . Thermal . | . . . Explosive 1107 | . . 1107 Electromagnetic 57 | . . 57 Impact . | . . . Slashing . | . . . Piercing . | . . . Highest Corruption . | . . . Average Corruption . | . . . Corruption Purged . | . . . Overload Shots . | . . . Overflow Damage 64 | . . 64 Projectiles . | . . . Explosions 64 | . . 64 Melee . | . . . Knockbacks . | . . . Impact . | . . . Kinetic . | . . . Secondary . | . . . Self-Inflicted Damage 125 | . . 125 Shots 4 | . . 4 Rammed . | . . . Targets Rammed . | . . . Kicked . | . . . Crushed . | . . . Highest Temperature . | . . . Average Temperature . | . . . Received Heat Transfer . | . . . Siege Activations . | . . . Robots Corrupted . | . . . Combat Hostiles . | . . . Parts Fried . | . . . Impact Corruptions . | . . . Robots Melted . | . . . Combat Hostiles . | . . . Parts Melted . | . . . Heat Transferred . | . . . Parts Sabotaged . | . . . Parts Stolen . | . . . Parts Stripped . | . . . Power Chain Reactions . | . . . Missiles Intercepted . | . . . Alert | -11 -10 -10 ------- Run | Scr Mat Min Peak Influence 35 | . 15 35 Initial 5 | . . 5 Average 10 | . 10 13 Maximum Alert Level . | . . . Low Security (%) 100 | 100 100 100 Level 1 . | . . . Level 2 . | . . . Level 3 . | . . . Level 4 . | . . . Level 5 . | . . . High Security . | . . . Max Security . | . . . Squads Dispatched 1 | . 1 . Investigation 1 | . 1 . Extermination . | . . . Reinforcement . | . . . Assault . | . . . Garrison . | . . . Intercept . | . . . Construction Impeded . | . . . Haulers Reinforced . | . . . Stealth | -11 -10 -10 --------- Run | Scr Mat Min Distress Signals . | . . . Communications Jammed . | . . . Distress Signals . | . . . Times Spotted 20 | . 1 19 Peak Tracking Total 11 | . 1 11 Tactical Retreats 1 | . . 1 Traps | -11 -10 -10 ------- Run | Scr Mat Min Traps Triggered 1 | . 1 . Indirectly . | . . . Trap Hack Attempts . | . . . Triggered . | . . . Disarmed . | . . . Reprogrammed . | . . . Reused . | . . . Traps Extracted . | . . . Installed . | . . . Triggered . | . . . Machines | -11 -10 -10 ---------- Run | Scr Mat Min Machines Disabled 1 | . . 1 Max in Single Turn 1 | . . 1 Machines Sabotaged . | . . . Garrisons Compromised . | . . . Overloaded Fab Kills . | . . . Fab Network Shutdowns . | . . . Hacking | -11 -10 -10 --------- Run | Scr Mat Min Machines Accessed 3 | . 3 . Terminals 2 | . 2 . Fabricators . | . . . Repair Stations . | . . . Recycling Units 1 | . 1 . Scanalyzers . | . . . Garrison Access . | . . . Total Hacks 6 | . 6 . Successful 3 | . 3 . Failed 3 | . 3 . Catastrophic . | . . . Database Lockouts . | . . . Manual 2 | . 2 . Terminals 3 | . 3 . Fabricators . | . . . Repair Stations . | . . . Recycling Units 3 | . 3 . Scanalyzers . | . . . Garrison Access . | . . . Terminal Hacks 2 | . 2 . Alert Level 1 | . 1 . Recall Investigation 1 | . 1 . Fabricator Hacks . | . . . Repair Station Hacks . | . . . Recycling Unit Hacks 1 | . 1 . Retrieve Components 1 | . 1 . Scanalyzer . | . . . Garrison Access Hacks . | . . . Unauthorized Hacks . | . . . Terminals . | . . . Fabricators . | . . . Repair Stations . | . . . Recycling Units . | . . . Scanalyzers . | . . . Garrison Access . | . . . Data Cores Recovered . | . . . Used . | . . . Hacking Detections 3 | . 3 . Full Trace Events . | . . . Feedback Events . | . . . Feedback Blocked . | . . . Robot Schematics Acquired . | . . . Robots Built . | . . . Matter . | . . . Time . | . . . Total Robot Build Rating . | . . . Part Schematics Acquired . | . . . Parts Built . | . . . Matter . | . . . Time . | . . . Total Part Build Rating . | . . . Parts Repaired . | . . . Time . | . . . Parts Recycled . | . . . Recycled Matter . | . . . Retrieved Matter . | . . . Retrieved Components 2 | . 2 . Parts Scanalyzed . | . . . Part Schematics Acquired . | . . . Parts Damaged . | . . . Bothacking | -11 -10 -10 ------------ Run | Scr Mat Min Used RIF Installer . | . . . Robots Hacked . | . . . Non-combat . | . . . Combat . | . . . Robot Hacks Applied . | . . . Relay Couplers Released . | . . . Robots Rewired . | . . . Allies Hacked . | . . . Hacks Repelled . | . . . Allies | -11 -10 -10 -------- Run | Scr Mat Min Total Allies . | . . . Largest Group . | . . . Highest-Rated Group . | . . . Highest-Rated Ally . | . . . Total Orders . | . . . Ally Attacks . | . . . Total Damage . | . . . Kills . | . . . Allies Corrupted . | . . . Allies Melted . | . . . Intel | -11 -10 -10 ------- Run | Scr Mat Min Robot Analysis Total . | . . . Derelict Logs Recovered 2 | . . 2 Drone Launches . | . . . Drone Recoveries . | . . . Exploration | -11 -10 -10 ------------- Run | Scr Mat Min Turns Passed 323 | 61 104 158 Spaces Moved 252 | 41 97 114 Core 3 | 3 . . Treads . | . . . Legs . | . . . Wheels 249 | 38 97 114 Hover . | . . . Flight . | . . . Fastest Speed 50 | 50 100 100 Average Speed 99 | 96 100 100 Slowest Speed 100 | 100 100 100 Overloaded Moves . | . . . Propulsion Burnouts . | . . . Robots Hopped . | . . . Cave-ins Triggered . | . . . Exploration Rate (%) 22 | 4 22 41 Regions Visited 2 Branch Regions 1 Pre-discovered Areas 1 | . . 1 Known Exits Taken . | . . . Unknown Exits Taken 2 | 1 1 . Scrap Searched . | . . . Spaces Dug . | . . . Terrain Destroyed 69 | . . 69 Melee . | . . . Projectile . | . . . AOE 69 | . . 69 Terrain Rammed . | . . . Walls Destroyed . | . . . Machines Disabled . | . . . Actions | -11 -10 -10 --------- Run | Scr Mat Min Total 298 | 59 104 135 Wait 16 | 9 . 7 Move 250 | 40 96 114 Hop . | . . . Pick Up 7 | 4 2 1 Fast Attach 7 | 6 1 . Attach 2 | . 2 . Detach 2 | . 2 . Swap 1 | . . 1 Drop 1 | . 1 . Fire 12 | . . 12 Melee . | . . . Ram . | . . . Kick . | . . . Crush . | . . . Escape Stasis . | . . . Rewire . | . . . Trap . | . . . Miscellaneous . | . . . Route ------- -11/Scrapyard -10/Materials -10/Mines (discovered 1 exit: Exi) History --------- Turn | Location | Event 38 | -11/Scrapyard | Discovered new exit (range 15) 62 | -11/Scrapyard | Entered Materials 159 | -10/Materials | Discovered new exit (range 8) 166 | -10/Materials | Entered Mines 184 | -10/Mines | Identified exit to Exiles 194 | -10/Mines | Received a Rocket Launcher from a helpful Derelict 235 | -10/Mines | Learned location of Recycling (-9) 255 | -10/Mines | Assembled infested the area 283 | -10/Mines | Core integrity fell below 50% 306 | -10/Mines | Core integrity fell below 20% 311 | -10/Mines | Build established: Mutant 324 | -10/Mines | Destroyed by D-53 Grenadier with Mini Grenade Launcher Last Messages --------------- 00289_ Acquired 1 matter. 00291_ U-05 Engineer lays Concrete. 00291_ as-09045 destroyed. 00291_ as-33505 destroyed. 00292_ U-05 Engineer lays Concrete. 00293_ U-05 Engineer builds a Wall. 00294_ as-57052 destroyed. 00296_ as-67938 destroyed. 00298_ U-05 Engineer lays Concrete. 00300_ U-05 Engineer builds a Wall. 00304_ U-05 Engineer lays Concrete. 00308_ Rocket Launcher destroyed. 00308_ as-35295 destroyed. [Achievement: Exterminator] 00308_ U-05 Engineer lays Concrete. 00311_ The unstable cave ceiling collapses. 00312_ U-05 Engineer lays Concrete. 00315_ The unstable cave ceiling collapses. 00316_ U-05 Engineer lays Concrete. 00324_ The unstable cave ceiling collapses. Map ----- +----------------------------------------------------+ | ????# ##?????## #???? | | ???## ##???## #???? | | ???# #??## #####???? | | ??# ## #??# #????#### | | ??# #?## ##??# ###### | | ??## #???# ##???## | | ???###????# #?????## # | | ??????????# ######### ########## | | ??????????# ###??????### | | ????##????######## # #????????# | | ???## ?????????# ###????????? | | ???# ????????# ##???????? | | ???# ??????### # ##??????? | | ???# #?##### #??????? | | ????# ## ##??????? | | ???## # ##???????? | | ??### ##????????? | | ??# #?????????? | | ?## "" % #?????????? | | ?# dd #?????????? | | ?# #????????? | | ?# #???????? | | ?## ### #??????? | | ??## # #### #?????? | | ???# < ## #?????? | | ???# @ #?????? | | ???# # #?????? | | ???## ?## #?????? | | ????##???# ??????? | | ?????????# ????????? | | ?????????# ?????????? | | ?????????## ??????????? | | ??????????###### ??????????? | | ????????????????# % ???????????? | | ?????????????????### ???????????? | | ????????????????????##????????????? | | ??????????????????????????????????? | | ??????????????????????????????????? | | ??????????????????????????????????? | | ??????????????????????????????????? | | ??????????????????????????????????? | | ??????????????????????????????????? | | ??????????????????????????????????? | | ??????????????????????????????????? | | ??????????????????????????????????? | | ??????????????????????????????????? | | ??????????????????????????????????? | | ???????????????????????????????>??? | | ??????????????????????????????????? | | ??????????????????????????????????? | +----------------------------------------------------+ Best States ------------- Heat Dissipation 35 Energy Generation 10 Energy Capacity 250 Matter Stores 244 Matter Capacity 300 Sight Range 16 Terrain Scan Density 10 Evasion (%) 40 Item Schematics ----------------- None Robot Schematics ------------------ None Fabricated ------------ Nothing Alien Tech Used ----------------- None Achievements -------------- Exterminator Challenges ------------ None Game ------ Seed TiamatRemoteStabilizer Manual? 0 Play Time 00:04:55 Cumulative 101.9 hours Start 2020.12.31 @ 03:33:23 End 2020.12.31 @ 03:42:23 Sessions 1 Manual Loads 0 Difficulty Rogue Special Mode None Game No. 187 Rogue 183 Adventurer 0 Explorer 4 Win Type - Total 0 Types 0/0/0/0/0/0/0/0/0 Lore% 61 Gallery% 68 Achievement% 46 Wizard Run 0 Options --------- ASCII 1 Keyboard 1 Movement Numpad Keybinds 0 Fullscreen 1 Font 18/SmallcapsGlow Map View 76x50 Tactical HUD 1 Map Filters NONE Filters NONE Steam 1 RUN: c5001d1c-7409-4f26-8909-20c2e02a72c3